{"text_format":"2","workbook":"xlsx","n_sheets":3,"sheets":["Sheet1","Sheet2","Sheet3"],"not_rendered":{"charts":0,"images":0,"macros":0,"external_links":0,"defined_names":3,"comments":0,"pivot_tables":0},"unopened":[],"bounds":{"document_bytes":16777216,"sheet_cells":100000,"run_cost":"one","rows_first":2000,"rows_last":500,"rows_between":2000,"halvings":0,"cell_chars":16384,"cell_head_chars":4096},"cells_cut":0,"cells_raw":0,"read":"whole","date_system":"1900"}

{"sheet":"Sheet1","index":0,"n_rows":137,"n_cols":4,"rows_kept":137,"cut":false,"hidden":false,"merged":[]}
["Waldron FFA Point System"]
[]
[null,"Quanity","Value Each","Total"]
["Meetings Attended"]
["Regular Chapter Meetings",null,50,{"$f":"SUM(B5*C5)","v":0}]
["Officer or Committee Meetings",null,15,{"$f":"SUM(B6*C6)","v":0}]
["Special Meetings",null,25,{"$f":"SUM(B7*C7)","v":0}]
["Officers"]
["Committee Chairman",null,10,{"$f":"SUM(B9*C9)","v":0}]
["Chapter Officer",null,25,0]
["Regional Officer",null,50,0]
["Fill Out Chapter Application for 2019-2020",null,15,0]
["Interview for Regional Officer 2019-2020",null,25,0]
["Interview for State Office 2019-2020",null,50,0]
["Elected to State Office 2019-2020",null,300,0]
["Finance"]
[]
["No Outstanding Balance ",null,15,{"$f":"SUM(B18*C18)","v":0}]
["Participate in the fruit and nut sale",null,100,0]
["Help at the Labor Auction",null,25,0]
["Labor Auction (1 point for each dollar sold)",null,1,0]
["Work the Pork Chop Dinner (25 points per hour)",null,25,0]
[null,null,null,0]
["Work on the orchard (20 points per hour)",null,20,0]
["Leadership"]
["Attend National Convention",null,100,{"$f":"SUM(B26*C26)","v":0}]
["Attend National Days of Service",null,50,0]
["Attend State Convention",null,75,0]
["Attend State Workshop",null,25,0]
["Attend Region II Camp",null,25,0]
["State Courtesy Corps",null,25,0]
["State Band/Talent",null,50,0]
["National Band/Talent",null,100,0]
["Delegate at State Convention",null,50,0]
["Attend session @ State Convention (10 pts per session)",null,10,0]
["Community"]
["Ransom Township Roadside Cleanup",null,200,{"$f":"SUM(B37*C37)","v":0}]
["Adopt A Highway Roadside Cleanup",null,200,{"$f":"SUM(B38*C38)","v":0}]
["Community Service Projects (25 pts each; 200 pts max)",null,25,{"$f":"SUM(B39*C39)","v":0}]
["Labor Day Activities (class, groups, boosters) 5 max",null,20,{"$f":"SUM(B40*C40)","v":0}]
["Petting zoo",null,50,{"$f":"SUM(B41*C41)","v":0}]
["Teacher breakfast ",null,20,0]
["School Groups or Clubs/3 Max",null,25,{"$f":"SUM(B43*C43)","v":0}]
[null,null,null,{"$f":"SUM(B44*C44)","v":0}]
["Agricultural Awareness"]
["Bring in a Display for Ag Day",null,55,{"$f":"SUM(B46*C46)","v":0}]
["Help at Ag Day",null,25,{"$f":"SUM(B47*C47)","v":0}]
["Elementary recruitment (20 points each max at 60)",null,20,{"$f":"SUM(B48*C48)","v":0}]
["Fair Display Board",null,25,{"$f":"SUM(B49*C49)","v":0}]
["Recreation"]
[null,null,null,{"$f":"SUM(B51*C51)","v":0}]
["Lock-in (50 pts each set-up, attend, clean-up)",null,50,{"$f":"SUM(B52*C52)","v":0}]
[null,null,null,0]
["Regional State and National Events"]
["Fall Bash",null,50,{"$f":"SUM(B55*C55)","v":0}]
["SLCCO/SLCRO",null,75,0]
["WLC",null,150,0]
[null,null,0,0]
["Fall Conference",null,100,0]
["Career Development Events"]
["Enter Broiler Contest individual",null,200,0]
["Broiler contest with the class",null,75,0]
["Receive a Silver Award",null,50,0]
["Receive a Gold Award",null,75,0]
["Participate in Regional team sport",null,25,0]
["Participate in CDE Workshop",null,50,0]
["State Tractor Driving",null,75,0]
["Top 5 in Tractor Driving",null,125,0]
["State FFA Skills Contest",null,100,0]
["CDE Boot Camp",null,20,0]
["Silver Award in State Skills",null,50,0]
["Gold Award in State Skills",null,75,0]
["Win State Skills",null,100,0]
["Compete at the National Skills Competition",null,150,0]
["Bronze Award at Nationals",null,50,0]
["Silver Award at Nationals",null,75,0]
["Gold Award at Nationals",null,100,0]
["Leadership Contest",null,150,0]
["District Silver",null,20,0]
["District Gold",null,40,0]
["Regional Silver ",null,25,0]
["Regional Gold",null,50,0]
["State Bronze",null,30,0]
["State Silver",null,60,0]
["State Gold",null,90,0]
["Win State Leadership Contest",null,100,0]
["Compete at the National Convention",null,200,0]
["National Bronze",null,40,0]
["National Silver",null,80,0]
["National Gold",null,120,0]
["Region II Discussion Meet",null,50,0]
["State Discussion Meet",null,100,0]
["Place at State in Discussion Meet finals",null,75,0]
["Win The State Discussion Meet",null,125,0]
["Scholarship"]
["A per Marking Period in Ag Class",null,20,0]
["B per Marking Period in Ag Class",null,10,0]
["Fill Out a Scholarship Application",null,250,0]
["Fair Projects"]
["Each Species",null,25,0]
["First in Class (Animal Projects)",null,50,0]
["Grand Champion",null,100,0]
["Reserve Champion",null,75,0]
["Crops/Vegetables/Crafts (10 points per entry)",null,10,0]
["First in Class (Crops/Vegetables/Crafts)",null,25,0]
["Award Applications"]
["Chapter Proficiency",null,25,0]
["State Proficiency",null,180,0]
["Outstanding Jr.",null,75,0]
["Top 3 in the State for Jr. Award",null,150,0]
["State Degree",null,75,0]
["Silver State Degree",null,100,0]
["Gold State Degree",null,150,0]
["State Star",null,300,0]
["SAE"]
["Proficiency Area 25 points each",null,25,0]
["Hours worked/Dollars Earned",null,null,0]
["Other Items"]
["Receite The Creed (15 points for each paragraph)",null,15,0]
["6 year Member Bonus",null,100,0]
["Working on FFA Activities Other Than School Time/10 max",null,10,0]
[null,null,0,0]
["Academic Award silver",null,200,0]
["Academic Award gold",null,250,0]
["Helping with National FFA Week (25 pts per activity)",null,25,0]
["Having a Membership Sign",null,15,0]
["Owning a FFA Jacket",null,45,0]
["Having a 2018-2019 FFA t-shirt",null,20,0]
["Star Greenhand or Chapter Farmer Banquet 2018",null,50,0]
["Star Regional Farmer ",null,75,0]
["Fair Kitchen (20 points per hour)",null,20,0]
[]
[]
[]
[]
[]
["Total Points for 2018-2019",null,null,{"$f":"SUM(D5:D136)","v":0}]

{"sheet":"Sheet2","index":1,"n_rows":0,"n_cols":0,"rows_kept":0,"cut":false,"hidden":false,"merged":[]}

{"sheet":"Sheet3","index":2,"n_rows":0,"n_cols":0,"rows_kept":0,"cut":false,"hidden":false,"merged":[]}